fUSD/lending_fUSD_20260506
["ID","MTS","AMOUNT","RATE_DAILY","PERIOD"]
[421726402,1778070632000,-600.0,0.00024,30]
[421726404,1778070632000,-400.0,0.00024324,2]
[421726391,1778070632000,-163.0,0.00023,2]
[421726394,1778070632000,-3155.91071532,0.00023076,5]
[421726400,1778070632000,-500.0,0.00024,2]
[421726396,1778070632000,-174.0,0.00024,2]
[421726397,1778070632000,-183.0,0.00024,2]
[421726401,1778070632000,-1650.0,0.00024,2]
[421726393,1778070632000,-915.08928468,0.00023076,5]
[421726399,1778070632000,-159.0,0.00024,2]
[421726398,1778070632000,-492.0,0.00024,2]
[421726405,1778070632000,-4071.0,0.00024354,5]
[421726406,1778070632000,-2000.0,0.00024498,2]
[421726414,1778070632000,-428.0,0.00025,2]
[421726384,1778070632000,-166.66,0.00022961,30]
[421726395,1778070632000,-413.0,0.00024,2]
[421726386,1778070632000,-174.0,0.00023,2]
[421726373,1778070632000,-174.0,0.00022,2]
[421726380,1778070632000,-159.32219503,0.00022407,2]
[421726415,1778070632000,-187.0,0.00025,2]
[421726370,1778070632000,-1032.29,0.00021273,2]
[421726376,1778070632000,-159.0,0.00022,2]
[421726378,1778070632000,-156.0,0.00022,2]
[421726371,1778070632000,-500.0,0.00021764,2]
[421726372,1778070632000,-413.0,0.00022,2]
[421726377,1778070632000,-450.0,0.00022,2]
[421726383,1778070632000,-2351.0,0.00022471,2]
[421726374,1778070632000,-183.0,0.00022,2]
[421726379,1778070632000,-400.0,0.00022353,2]
[421726381,1778070632000,-159.32219502,0.00022407,2]
[421726388,1778070632000,-492.0,0.00023,2]
[421726382,1778070632000,-1412.32,0.00022466,2]
[421726387,1778070632000,-183.0,0.00023,2]
[421726385,1778070632000,-413.0,0.00023,2]
[421726390,1778070632000,-159.0,0.00023,2]
[421726375,1778070632000,-492.0,0.00022,2]
[421726407,1778070632000,-445.42301396,0.00024569,2]
[421726419,1778070632000,-22908.6,0.00025178,2]
[421726410,1778070632000,-160.67,0.00024658,2]
[421726434,1778070632000,-506.46,0.0002646,2]
[421726437,1778070632000,-2507.20594172,0.00026909,5]
[421726439,1778070632000,-179.84798084,0.00027137,2]
[421726435,1778070632000,-188.22,0.00026503,2]
[421726436,1778070632000,-482.26988066,0.00026909,5]
[421726438,1778070632000,-1081.52417762,0.00026909,5]
[421726441,1778070632000,-501.0,0.00027137,2]
[421726433,1778070632000,-200.0,0.00026398,2]
[421726432,1778070632000,-400.0,0.00026296,2]
[421726440,1778070632000,-322.15201916,0.00027137,2]
[421726444,1778070632000,-225.9669304,0.0002723,2]
[421726445,1778070632000,-391.88,0.0002723,2]
[421726443,1778070632000,-172.58,0.00027214,2]
[421726448,1778070632000,-75.41191073,0.00027397,2]
[421726447,1778070632000,-150.0,0.00027395,2]
[421726411,1778070632000,-182.8,0.00024658,2]
[421726442,1778070632000,-200.0,0.00027212,2]
[421726431,1778070632000,-4495.2,0.00026279,2]
[421726446,1778070632000,-382.1530696,0.0002723,2]
[421726428,1778070632000,-240.05,0.00026098,2]
[421726426,1778070632000,-6023.39,0.00025786,2]
[421726413,1778070632000,-183.21,0.00024658,2]
[421726416,1778070632000,-196.0,0.00025,2]
[421726412,1778070632000,-183.57,0.00024658,2]
[421726409,1778070632000,-6478.21,0.00024652,2]
[421726417,1778070632000,-496.0,0.00025,2]
[421726429,1778070632000,-5000.0,0.00026113,2]
[421726430,1778070632000,-500.0,0.00026137,2]
[421726408,1778070632000,-2153.0,0.00024619,2]
[421726421,1778070632000,-166.66,0.00025378,30]
[421726427,1778070632000,-550.0,0.00026,2]
[421726420,1778070632000,-1000.0,0.00025178,2]
[421726418,1778070632000,-163.0,0.00025,2]
[421726423,1778070632000,-4221.7614,0.00025686,2]
[421726424,1778070632000,-1316.52,0.00025786,2]
[421726425,1778070632000,-1032.29,0.00025786,2]
[421726422,1778070632000,-4071.0,0.00025632,5]
[421726465,1778070638000,-182.93,0.00024658,2]
[421726466,1778070638000,-41.90797157,0.00027397,2]
[421726665,1778070639000,-39.1101177,0.00027397,2]
[421726670,1778070639000,-301.30797556,0.0002756,2]
[421726667,1778070639000,-883.07321648,0.0002756,2]
[421726753,1778070640000,-4804.0,0.0003,2]
[421726757,1778070640000,-400.0,0.00030239,2]
[421726765,1778070640000,-185.61,0.00030732,2]
[421726759,1778070640000,-300.0,0.00030575,30]
[421726755,1778070640000,-6321.0,0.00030137,120]
[421726761,1778070640000,-300.0,0.00030575,30]
[421726763,1778070640000,-2000.0,0.00030622,2]
[421726774,1778070640000,-156.0,0.00031229,30]
[421726749,1778070640000,-650.0,0.0003,2]
[421726771,1778070640000,-156.0,0.00031229,30]
[421726767,1778070640000,-4071.0,0.00030742,10]
[421726790,1778070640000,-153.0,0.00031231,30]
[421726778,1778070640000,-159.0,0.00031229,30]
[421726776,1778070640000,-492.0,0.00031229,30]
[421726782,1778070640000,-158.0,0.0003123,30]
[421726780,1778070640000,-152.0,0.0003123,30]
[421726784,1778070640000,-156.0,0.0003123,30]
[421726788,1778070640000,-174.0,0.00031231,30]
[421726786,1778070640000,-413.0,0.00031231,30]
[421726792,1778070640000,-183.0,0.00031231,30]
[421726750,1778070640000,-289.47091096,0.0003,14]
[421726795,1778070640000,-3347.8,0.00031369,10]
[421726799,1778070640000,-186.179668,0.00031379,120]
[421726797,1778070640000,-162.091134,0.00031379,14]
[421726769,1778070640000,-150.0,0.00031011,2]
[421726737,1778070640000,-151.0,0.00029997,7]
[421726701,1778070640000,-162.86,0.00029232,30]
[421726735,1778070640000,-502.0,0.00029654,4]
[421726803,1778070640000,-743.50357679,0.000318,2]
[421726684,1778070640000,-1000.0,0.000278,7]
[421726686,1778070640000,-600.0,0.00028,2]
[421726682,1778070640000,-815.61880796,0.0002756,2]
[421726687,1778070640000,-166.66,0.0002817,2]
[421726694,1778070640000,-162.6,0.00028954,2]
[421726696,1778070640000,-162.86,0.00028981,2]
[421726690,1778070640000,-4071.0,0.00028186,10]
[421726699,1778070640000,-162.86,0.00029106,7]
[421726697,1778070640000,-162.6,0.00029093,7]
[421726692,1778070640000,-400.0,0.00028267,2]
[421726704,1778070640000,-162.62,0.00029232,30]
[421726706,1778070640000,-271.396562,0.000294,14]
[421726708,1778070640000,-271.396561,0.000294,14]
[421726710,1778070640000,-186.179669,0.000294,14]
[421726712,1778070640000,-1513.72662067,0.00029464,10]
[421726727,1778070640000,-214.60306816,0.00029464,10]
[421726724,1778070640000,-2557.27337933,0.00029464,10]
[421726729,1778070640000,-180.0,0.00029493,3]
[421726739,1778070640000,-293.08181688,0.00029999,2]
[421726741,1778070640000,-500.0,0.00029999,2]
[421726731,1778070640000,-150.0,0.00029534,2]
[421726743,1778070640000,-313.64169953,0.00029999,2]
[421726747,1778070640000,-921.23621971,0.0003,14]
[421726733,1778070640000,-299.102956,0.00029534,14]
[421726745,1778070640000,-60624.77683264,0.0003,2]
[421726801,1778070640000,-743.50357679,0.000318,2]
[421726900,1778070640000,-202.23059078,0.000339,120]
[421726807,1778070640000,-152.0,0.00031871,2]
[421726859,1778070640000,-177.67612946,0.00032877,2]
[421726870,1778070640000,-156.0,0.00033229,30]
[421726864,1778070640000,-535.35183622,0.00033,120]
[421726862,1778070640000,-344.07789542,0.00033,120]
[421726876,1778070640000,-159.0,0.00033229,30]
[421726874,1778070640000,-492.0,0.00033229,30]
[421726878,1778070640000,-152.0,0.0003323,30]
[421726880,1778070640000,-158.0,0.0003323,30]
[421726882,1778070640000,-156.0,0.0003323,30]
[421726886,1778070640000,-174.0,0.00033231,30]
[421726888,1778070640000,-183.0,0.00033231,30]
[421726892,1778070640000,-250.0,0.00033634,5]
[421726893,1778070640000,-2000.0,0.00033684,2]
[421726902,1778070640000,-162.0,0.0003411,120]
[421726903,1778070640000,-261.22043059,0.00034182,5]
[421726895,1778070640000,-344.07789542,0.000339,120]
[421726884,1778070640000,-413.0,0.00033231,30]
[421726898,1778070640000,-535.35183622,0.000339,120]
[421726905,1778070640000,-400.0,0.00034182,7]
[421726908,1778070640000,-150.0,0.0003419,2]
[421726916,1778070640000,-159.0,0.00034229,30]
[421726910,1778070640000,-156.0,0.00034229,30]
[421726914,1778070640000,-492.0,0.00034229,30]
[421726912,1778070640000,-156.0,0.00034229,30]
[421726805,1778070640000,-743.50357679,0.000318,2]
[421726872,1778070640000,-156.0,0.00033229,30]
[421726866,1778070640000,-202.23059078,0.00033,120]
[421726890,1778070640000,-4071.0,0.00033296,15]
[421726858,1778070640000,-500.0,0.00032877,2]
[421726809,1778070640000,-344.07789542,0.00032,120]
[421726860,1778070640000,-770.69,0.00032877,2]
[421726811,1778070640000,-535.35183622,0.00032,120]
[421726815,1778070640000,-4071.0,0.00032019,10]
[421726813,1778070640000,-202.23059078,0.00032,120]
[421726820,1778070640000,-400.0,0.0003221,5]
[421726824,1778070640000,-156.0,0.00032229,30]
[421726818,1778070640000,-502.0,0.00032172,7]
[421726828,1778070640000,-159.0,0.00032229,30]
[421726826,1778070640000,-492.0,0.00032229,30]
[421726830,1778070640000,-152.0,0.0003223,30]
[421726832,1778070640000,-158.0,0.0003223,30]
[421726844,1778070640000,-225.0,0.0003224,2]
[421726822,1778070640000,-156.0,0.00032229,30]
[421726849,1778070640000,-349.29,0.00032877,2]
[421726868,1778070640000,-150.0,0.00033086,5]
[421726842,1778070640000,-3112.0,0.0003224,2]
[421726848,1778070640000,-150.0,0.00032562,2]
[421726854,1778070640000,-600.0,0.00032877,120]
[421726846,1778070640000,-162.0,0.00032486,120]
[421726856,1778070640000,-435.0,0.00032877,120]
[421726834,1778070640000,-156.0,0.0003223,30]
[421726838,1778070640000,-174.0,0.00032231,30]
[421726840,1778070640000,-183.0,0.00032231,30]
[421726836,1778070640000,-413.0,0.00032231,30]
[421726852,1778070640000,-600.0,0.00032877,120]
[421727003,1778070641000,-492.0,0.00035229,30]
[421727011,1778070641000,-413.0,0.00035231,30]
[421727007,1778070641000,-158.0,0.0003523,30]
[421727005,1778070641000,-159.0,0.00035229,30]
[421727001,1778070641000,-165.0,0.00035229,30]
[421726999,1778070641000,-156.0,0.00035229,30]
[421726989,1778070641000,-344.07789542,0.00035,120]
[421726987,1778070641000,-184.365,0.00034815,40]
[421726995,1778070641000,-214.60306816,0.00035,30]
[421726997,1778070641000,-160.0,0.00035,120]
[421727013,1778070641000,-174.0,0.00035231,30]
[421726986,1778070641000,-1857.037,0.00034815,40]
[421727009,1778070641000,-156.0,0.0003523,30]
[421727041,1778070641000,-4071.0,0.00035852,15]
[421727019,1778070641000,-2157.14243826,0.00035259,5]
[421727017,1778070641000,-2080.17592889,0.00035259,5]
[421727024,1778070641000,-239.5481778,0.00035259,5]
[421727021,1778070641000,-2236.95670848,0.00035259,5]
[421727029,1778070641000,-200.0,0.00035507,2]
[421727026,1778070641000,-554.48813555,0.00035446,2]
[421727045,1778070641000,-200.0,0.00035862,2]
[421727028,1778070641000,-310.0,0.00035507,38]
[421727031,1778070641000,-200.0,0.00035507,2]
[421727040,1778070641000,-500.0,0.00035699,120]
[421727043,1778070641000,-200.0,0.00035862,2]
[421726993,1778070641000,-202.23059078,0.00035,120]
[421727015,1778070641000,-183.0,0.00035231,30]
[421726991,1778070641000,-535.35183622,0.00035,120]
[421726922,1778070641000,-158.0,0.0003423,30]
[421726982,1778070641000,-4071.0,0.00034574,15]
[421726918,1778070641000,-500.0,0.0003423,2]
[421726924,1778070641000,-156.0,0.0003423,30]
[421726920,1778070641000,-153.0,0.0003423,30]
[421726926,1778070641000,-413.0,0.00034231,30]
[421726928,1778070641000,-174.0,0.00034231,30]
[421726932,1778070641000,-600.0,0.00034247,120]
[421726930,1778070641000,-183.0,0.00034231,30]
[421726934,1778070641000,-600.0,0.00034247,120]
[421726936,1778070641000,-156.43,0.00034247,30]
[421726939,1778070641000,-43074.8680686,0.00034256,2]
[421726940,1778070641000,-554.48813555,0.00034293,2]
[421726948,1778070641000,-223.16,0.00034386,2]
[421726950,1778070641000,-500.0,0.00034392,120]
[421726954,1778070641000,-500.0,0.00034392,2]
[421726956,1778070641000,-500.0,0.00034392,120]
[421726946,1778070641000,-223.16,0.00034384,2]
[421726958,1778070641000,-500.0,0.00034392,7]
[421726942,1778070641000,-244.34429518,0.0003437,2]
[421726944,1778070641000,-500.0,0.00034373,5]
[421726952,1778070641000,-504.36314332,0.00034392,120]
[421726960,1778070641000,-107154.7732445,0.00034393,2]
[421726964,1778070641000,-582.2187719,0.00034393,2]
[421726962,1778070641000,-13240.6184518,0.00034393,2]
[421726966,1778070641000,-1488.8606219,0.00034393,2]
[421726968,1778070641000,-11151.9143145,0.00034393,2]
[421726977,1778070641000,-213.65,0.00034435,2]
[421726970,1778070641000,-160529.3981723,0.00034393,2]
[421726984,1778070641000,-502.0,0.00034689,10]
[421727038,1778070641000,-500.0,0.00035699,120]
[421727057,1778070641000,-151.0,0.00036097,14]
[421727033,1778070641000,-500.0,0.00035699,30]
[421727111,1778070641000,-150.0,0.0003672,2]
[421727110,1778070641000,-150.0,0.0003672,2]
[421727113,1778070641000,-150.0,0.0003672,2]
[421727116,1778070641000,-2000.0,0.00036747,2]
[421727109,1778070641000,-150.0,0.0003672,2]
[421727112,1778070641000,-150.0,0.0003672,2]
[421727115,1778070641000,-159.43866739,0.0003672,2]
[421727120,1778070641000,-155.19326329,0.00036814,7]
[421727118,1778070641000,-162.8376062,0.00036814,30]
[421727114,1778070641000,-151.0,0.0003672,2]
[421727122,1778070641000,-150.00000001,0.00036814,7]
[421727124,1778070641000,-155.7928226,0.00036814,7]
[421727127,1778070641000,-150.0,0.00036814,7]
[421727142,1778070641000,-200.0,0.00036949,2]
[421727144,1778070641000,-310.0,0.00037019,43]
[421727138,1778070641000,-500.0,0.00036924,5]
[421727137,1778070641000,-500.0,0.00036924,2]
[421727140,1778070641000,-200.0,0.00036949,2]
[421727146,1778070641000,-164.15743663,0.00037027,2]
[421727147,1778070641000,-500.0,0.0003703,5]
[421727129,1778070641000,-150.0,0.00036814,7]
[421727131,1778070641000,-163.16558903,0.00036924,5]
[421727133,1778070641000,-500.0,0.00036924,5]
[421727134,1778070641000,-500.0,0.00036924,5]
[421727148,1778070641000,-500.0,0.0003703,5]
[421727150,1778070641000,-1000.0,0.00037065,5]
[421727036,1778070641000,-500.0,0.00035699,120]
[421727108,1778070641000,-150.0,0.0003672,2]
[421727107,1778070641000,-150.0,0.0003672,2]
[421727149,1778070641000,-506.46,0.00037044,2]
[421727098,1778070641000,-500.0,0.00036517,5]
[421727100,1778070641000,-500.0,0.00036517,5]
[421727049,1778070641000,-344.07789542,0.00036,120]
[421727051,1778070641000,-535.35183622,0.00036,120]
[421727053,1778070641000,-202.23059078,0.00036,120]
[421727055,1778070641000,-1221.0,0.00036024,2]
[421727059,1778070641000,-400.0,0.00036153,30]
[421727061,1778070641000,-150.0,0.00036164,2]
[421727063,1778070641000,-200.0,0.00036221,2]
[421727073,1778070641000,-159.0,0.00036229,30]
[421727075,1778070641000,-156.0,0.0003623,30]
[421727066,1778070641000,-200.0,0.00036221,2]
[421727078,1778070641000,-413.0,0.00036231,30]
[421727080,1778070641000,-174.0,0.00036231,30]
[421727047,1778070641000,-150.0,0.00035899,2]
[421727070,1778070641000,-492.0,0.00036229,30]
[421727103,1778070641000,-200.0,0.00036583,2]
[421727102,1778070641000,-500.0,0.00036517,5]
[421727106,1778070641000,-150.0,0.0003672,2]
[421727104,1778070641000,-200.0,0.00036583,2]
[421727068,1778070641000,-160.0,0.00036229,30]
[421727105,1778070641000,-554.48813555,0.00036598,2]
[421727096,1778070641000,-500.0,0.00036517,5]
[421727091,1778070641000,-500.0,0.00036517,5]
[421727089,1778070641000,-186.53575633,0.00036517,5]
[421727085,1778070641000,-500.0,0.00036517,5]
[421727087,1778070641000,-500.0,0.00036517,5]
[421727083,1778070641000,-183.0,0.00036231,30]
[421727094,1778070641000,-500.0,0.00036517,5]
[421727187,1778070642000,-500.0,0.00037677,2]
[421727191,1778070642000,-150.0,0.00037677,2]
[421727198,1778070642000,-500.0,0.00037677,2]
[421727189,1778070642000,-500.0,0.00037677,2]
[421727178,1778070642000,-431.73147682,0.00037613,5]
[421727188,1778070642000,-150.0,0.00037677,2]
[421727186,1778070642000,-500.0,0.00037677,2]
[421727177,1778070642000,-1500.0,0.00037613,5]
[421727184,1778070642000,-500.0,0.00037639,5]
[421727180,1778070642000,-1500.0,0.00037613,5]
[421727196,1778070642000,-500.0,0.00037677,2]
[421727185,1778070642000,-286.72,0.00037671,120]
[421727199,1778070642000,-500.0,0.00037677,2]
[421727197,1778070642000,-500.0,0.00037677,2]
[421727192,1778070642000,-500.0,0.00037677,2]
[421727194,1778070642000,-500.0,0.00037677,2]
[421727195,1778070642000,-200.0,0.00037677,2]
[421727193,1778070642000,-150.0,0.00037677,2]
[421727201,1778070642000,-500.0,0.00037677,2]
[421727203,1778070642000,-500.0,0.00037677,2]
[421727202,1778070642000,-150.0,0.00037677,2]
[421727200,1778070642000,-500.0,0.00037677,2]
[421727205,1778070642000,-150.0,0.00037677,2]
[421727204,1778070642000,-500.0,0.00037677,2]
[421727174,1778070642000,-1000.0,0.00037578,5]
[421727211,1778070642000,-150.0,0.00037677,2]
[421727190,1778070642000,-500.0,0.00037677,2]
[421727179,1778070642000,-501.50869273,0.00037613,5]
[421727171,1778070642000,-1000.0,0.00037472,5]
[421727175,1778070642000,-1000.0,0.00037578,5]
[421727208,1778070642000,-500.0,0.00037677,2]
[421727151,1778070642000,-1000.0,0.00037065,5]
[421727158,1778070642000,-502.0,0.00037206,13]
[421727153,1778070642000,-1000.0,0.00037065,5]
[421727156,1778070642000,-1000.0,0.00037065,5]
[421727152,1778070642000,-1000.0,0.00037065,5]
[421727159,1778070642000,-492.0,0.00037229,30]
[421727154,1778070642000,-1000.0,0.00037065,5]
[421727160,1778070642000,-159.0,0.00037229,30]
[421727155,1778070642000,-1000.0,0.00037065,5]
[421727157,1778070642000,-4071.0,0.00037129,15]
[421727162,1778070642000,-413.0,0.00037231,30]
[421727173,1778070642000,-1000.0,0.00037472,5]
[421727161,1778070642000,-156.0,0.0003723,30]
[421727169,1778070642000,-500.0,0.00037436,5]
[421727167,1778070642000,-500.0,0.00037436,5]
[421727166,1778070642000,-500.0,0.00037421,5]
[421727165,1778070642000,-500.0,0.00037421,5]
[421727163,1778070642000,-174.0,0.00037231,30]
[421727164,1778070642000,-183.0,0.00037231,30]
[421727168,1778070642000,-500.0,0.00037436,5]
[421727172,1778070642000,-671.63544967,0.00037472,2]
[421727182,1778070642000,-1500.0,0.00037613,5]
[421727176,1778070642000,-500.0,0.00037583,5]
[421727181,1778070642000,-1500.0,0.00037613,5]
[421727183,1778070642000,-1500.0,0.00037613,5]
[421727170,1778070642000,-504.22534813,0.00037472,5]
[421727209,1778070642000,-150.0,0.00037677,2]
[421727210,1778070642000,-224.78889223,0.00037677,2]
[421727207,1778070642000,-152.27713592,0.00037677,2]
[421727248,1778070642000,-1000.0,0.00038126,5]
[421727241,1778070642000,-632.20967093,0.00037984,5]
[421727247,1778070642000,-400.0,0.00038125,30]
[421727243,1778070642000,-502.13953093,0.00037984,5]
[421727245,1778070642000,-1500.0,0.0003802,5]
[421727250,1778070642000,-1000.0,0.00038131,5]
[421727261,1778070642000,-2000.0,0.00038198,2]
[421727262,1778070642000,-2000.0,0.00038198,2]
[421727249,1778070642000,-596.48180787,0.00038126,5]
[421727255,1778070642000,-500.0,0.00038161,5]
[421727259,1778070642000,-572.29524067,0.00038187,5]
[421727251,1778070642000,-500.0,0.00038161,5]
[421727244,1778070642000,-984.0,0.00038009,30]
[421727254,1778070642000,-500.0,0.00038161,5]
[421727253,1778070642000,-500.0,0.00038161,5]
[421727264,1778070642000,-2000.0,0.00038198,2]
[421727263,1778070642000,-2000.0,0.00038198,2]
[421727265,1778070642000,-2000.0,0.00038198,2]
[421727272,1778070642000,-500.0,0.00038223,120]
[421727267,1778070642000,-2000.0,0.00038198,2]
[421727270,1778070642000,-2000.0,0.00038198,2]
[421727266,1778070642000,-2000.0,0.00038198,2]
[421727268,1778070642000,-2000.0,0.00038198,2]
[421727269,1778070642000,-2000.0,0.00038198,2]
[421727271,1778070642000,-500.0,0.00038223,2]
[421727273,1778070642000,-500.0,0.00038223,7]
[421727252,1778070642000,-461.74205325,0.00038161,5]
[421727246,1778070642000,-1500.0,0.0003802,5]
[421727257,1778070642000,-150.0,0.00038177,7]
[421727237,1778070642000,-2000.0,0.00037792,2]
[421727242,1778070642000,-1000.0,0.00037984,5]
[421727212,1778070642000,-500.0,0.00037677,2]
[421727226,1778070642000,-1250.0,0.00037792,2]
[421727225,1778070642000,-1250.0,0.00037792,2]
[421727214,1778070642000,-622.68040701,0.00037677,2]
[421727224,1778070642000,-1250.0,0.00037792,2]
[421727216,1778070642000,-150.0,0.00037677,2]
[421727213,1778070642000,-150.0,0.00037677,2]
[421727221,1778070642000,-500.0,0.00037773,5]
[421727219,1778070642000,-233.22273463,0.00037699,2]
[421727217,1778070642000,-679.0,0.00037679,30]
[421727220,1778070642000,-554.48813555,0.00037751,2]
[421727222,1778070642000,-500.0,0.00037773,5]
[421727218,1778070642000,-150.0,0.00037694,2]
[421727206,1778070642000,-150.0,0.00037677,2]
[421727240,1778070642000,-1000.0,0.00037969,5]
[421727227,1778070642000,-1250.0,0.00037792,2]
[421727230,1778070642000,-1250.0,0.00037792,2]
[421727228,1778070642000,-1250.0,0.00037792,2]
[421727229,1778070642000,-1250.0,0.00037792,2]
[421727231,1778070642000,-1250.0,0.00037792,2]
[421727234,1778070642000,-908.0,0.00037792,2]
[421727233,1778070642000,-1250.0,0.00037792,2]
[421727236,1778070642000,-2000.0,0.00037792,2]
[421727215,1778070642000,-150.0,0.00037677,2]
[421727239,1778070642000,-1000.0,0.00037969,5]
[421727235,1778070642000,-2000.0,0.00037792,2]
[421727238,1778070642000,-200.0,0.000379,15]
[421727315,1778070643000,-483.27319916,0.00038227,2]
[421727314,1778070643000,-300.0,0.00038227,2]
[421727301,1778070643000,-301.2859328,0.00038227,2]
[421727312,1778070643000,-481.18706949,0.00038227,2]
[421727313,1778070643000,-451.13853711,0.00038227,2]
[421727310,1778070643000,-310.3725982,0.00038227,2]
[421727299,1778070643000,-309.13065885,0.00038227,2]
[421727306,1778070643000,-343.40295571,0.00038227,2]
[421727300,1778070643000,-724.83131769,0.00038227,2]
[421727304,1778070643000,-852.7601399,0.00038227,2]
[421727302,1778070643000,-300.0,0.00038227,2]
[421727317,1778070643000,-300.0,0.00038227,2]
[421727311,1778070643000,-463.08064867,0.00038227,2]
[421727319,1778070643000,-337.80104667,0.00038227,2]
[421727325,1778070643000,-891.9241332,0.00038227,2]
[421727318,1778070643000,-1092.83356842,0.00038227,2]
[421727320,1778070643000,-491.85958444,0.00038227,2]
[421727321,1778070643000,-603.45144378,0.00038227,2]
[421727323,1778070643000,-526.86051061,0.00038227,2]
[421727333,1778070643000,-343.40295571,0.00038227,2]
[421727322,1778070643000,-300.0,0.00038227,2]
[421727328,1778070643000,-301.2859328,0.00038227,2]
[421727324,1778070643000,-1065.13491717,0.00038227,2]
[421727331,1778070643000,-852.7601399,0.00038227,2]
[421727330,1778070643000,-300.06118393,0.00038227,2]
[421727326,1778070643000,-309.13065885,0.00038227,2]
[421727332,1778070643000,-1793.38851355,0.00038227,2]
[421727316,1778070643000,-309.32134718,0.00038227,2]
[421727298,1778070643000,-891.9241332,0.00038227,2]
[421727274,1778070643000,-200.0,0.00038223,30]
[421727303,1778070643000,-300.06118393,0.00038227,2]
[421727327,1778070643000,-724.83131769,0.00038227,2]
[421727275,1778070643000,-852.7601399,0.00038227,2]
[421727284,1778070643000,-481.18706949,0.00038227,2]
[421727276,1778070643000,-1793.38851355,0.00038227,2]
[421727277,1778070643000,-372.93716443,0.00038227,2]
[421727283,1778070643000,-463.08064867,0.00038227,2]
[421727281,1778070643000,-862.96230178,0.00038227,2]
[421727282,1778070643000,-310.3725982,0.00038227,2]
[421727278,1778070643000,-343.40295571,0.00038227,2]
[421727279,1778070643000,-1145.24599896,0.00038227,2]
[421727280,1778070643000,-309.07064608,0.00038227,2]
[421727288,1778070643000,-483.27319916,0.00038227,2]
[421727287,1778070643000,-300.0,0.00038227,2]
[421727290,1778070643000,-300.0,0.00038227,2]
[421727289,1778070643000,-309.32134718,0.00038227,2]
[421727291,1778070643000,-1092.83356842,0.00038227,2]
[421727285,1778070643000,-451.13853711,0.00038227,2]
[421727294,1778070643000,-603.45144378,0.00038227,2]
[421727292,1778070643000,-300.0,0.00038227,2]
[421727293,1778070643000,-491.85958444,0.00038227,2]
[421727286,1778070643000,-500.81431188,0.00038227,2]
[421727295,1778070643000,-300.0,0.00038227,2]
[421727297,1778070643000,-1065.13491717,0.00038227,2]
[421727296,1778070643000,-526.86051061,0.00038227,2]
[421727307,1778070643000,-1145.24599896,0.00038227,2]
[421727305,1778070643000,-1793.38851355,0.00038227,2]
[421727309,1778070643000,-862.96230178,0.00038227,2]
[421727308,1778070643000,-309.07064608,0.00038227,2]
[421727329,1778070643000,-300.0,0.00038227,2]
[421727390,1778070643000,-228.472864,0.00038227,7]
[421727336,1778070643000,-862.96230178,0.00038227,2]
[421727370,1778070643000,-300.0,0.00038227,2]
[421727368,1778070643000,-481.18706949,0.00038227,2]
[421727372,1778070643000,-309.32134718,0.00038227,2]
[421727371,1778070643000,-483.27319916,0.00038227,2]
[421727375,1778070643000,-491.85958444,0.00038227,2]
[421727383,1778070643000,-151.0,0.00038227,30]
[421727374,1778070643000,-1092.83356842,0.00038227,2]